fUSD/lending_fUSD_20240114
["ID","MTS","AMOUNT","RATE_DAILY","PERIOD"]
[311623338,1705265562732,-746.49,0.0003452,2]
[311623339,1705265562741,-500.0,0.0003452,2]
[311623340,1705265562751,-7127.94,0.0003452,2]
[311623341,1705265562760,-727.08,0.0003452,2]
[311623342,1705265562770,-918.26,0.0003452,2]
[311623343,1705265562782,-2334.97,0.0003452,2]
[311623344,1705265562791,-571.94,0.0003452,2]
[311623345,1705265562800,-520.99,0.0003452,2]
[311623346,1705265562810,-1278.08,0.0003452,2]
[311623347,1705265562820,-591.07765378,0.0003452,2]
[311623348,1705265562830,-500.0,0.0003452,2]
[311623349,1705265562839,-1335.19,0.0003452,2]
[311623350,1705265562849,-507.96,0.0003452,2]
[311623351,1705265562860,-682.65,0.0003452,2]
[311623352,1705265562870,-2191.12,0.0003452,2]
[311623353,1705265562879,-1823.86,0.0003452,2]
[311623354,1705265562889,-3000.0,0.0003452,2]
[311623355,1705265562900,-566.33,0.0003452,2]
[311623356,1705265562919,-602.37,0.0003452,2]
[311623357,1705265562929,-651.64,0.0003452,2]
[311623358,1705265562938,-883.91,0.0003452,2]
[311623359,1705265562949,-2214.32,0.0003452,2]
[311623360,1705265562958,-14316.0,0.0003452,2]
[311623361,1705265562967,-875.93,0.0003452,2]
[311623362,1705265562976,-1750.64,0.0003452,2]
[311623363,1705265562985,-500.0,0.0003452,2]
[311623364,1705265562995,-596.16,0.0003452,2]
[311623365,1705265563005,-846.65,0.0003452,2]
[311623366,1705265563014,-753.89,0.0003452,2]
[311623367,1705265563025,-1849.03,0.0003452,2]
[311623368,1705265563034,-500.0,0.0003452,2]
[311623369,1705265563043,-1112.66,0.0003452,2]
[311623370,1705265563053,-1725.14,0.0003452,2]
[311623371,1705265563061,-796.33,0.0003452,2]
[311623372,1705265563071,-500.0,0.0003452,2]
[311623373,1705265563080,-808.86,0.0003452,2]
[311623374,1705265563090,-899.24,0.0003452,2]
[311623375,1705265563099,-1429.98,0.0003452,2]
[311623376,1705265563108,-500.0,0.0003452,2]
[311623377,1705265563118,-524.71,0.0003452,2]
[311623378,1705265563128,-1713.52,0.0003452,2]
[311623379,1705265563137,-1102.84,0.0003452,2]
[311623380,1705265563147,-1618.96,0.0003452,2]
[311623381,1705265563156,-1116.72,0.0003452,2]
[311623382,1705265563222,-2696.94,0.0003452,2]
[311623383,1705265563231,-500.0,0.0003452,2]
[311623384,1705265563240,-794.76,0.0003452,2]
[311623385,1705265563250,-500.0,0.0003452,2]
[311623386,1705265563259,-500.0,0.0003452,2]
[311623387,1705265563269,-724.53,0.0003452,2]
[311623388,1705265563278,-1597.13,0.0003452,2]
[311623389,1705265563287,-737.29,0.0003452,2]
[311623390,1705265563297,-622.57,0.0003452,2]
[311623391,1705265563306,-500.0,0.0003452,2]
[311623392,1705265563316,-1009.68,0.0003452,2]
[311623393,1705265563325,-640.35,0.0003452,2]
[311623394,1705265563335,-500.0,0.0003452,2]
[311623395,1705265563344,-1595.29,0.0003452,2]
[311623396,1705265563353,-500.0,0.0003452,2]
[311623397,1705265563362,-917.26,0.0003452,2]
[311623398,1705265563372,-565.13,0.0003452,2]
[311623399,1705265563381,-2100.41,0.0003452,2]
[311623400,1705265563390,-4300.16,0.0003452,2]
[311623401,1705265563400,-1007.56,0.0003452,2]
[311623402,1705265563409,-776.73,0.0003452,2]
[311623403,1705265563418,-500.0,0.0003452,2]
[311623404,1705265563430,-5057.58,0.0003452,2]
[311623405,1705265563439,-500.0,0.0003452,2]
[311623406,1705265563448,-933.45,0.0003452,2]
[311623407,1705265563457,-531.05,0.0003452,2]
[311623408,1705265563466,-1593.77,0.0003452,2]
[311623409,1705265563475,-720.02,0.0003452,2]
[311623410,1705265563484,-500.0,0.0003452,5]
[311623411,1705265563494,-500.0,0.0003452,2]
[311623412,1705265563503,-4742.8,0.0003452,2]
[311623413,1705265563513,-1573.4,0.0003452,2]
[311623414,1705265563522,-500.0,0.0003452,2]
[311623415,1705265563531,-500.0,0.0003452,2]
[311623416,1705265563541,-332.22,0.0003452,2]
[311623417,1705265563550,-3392.17,0.0003452,2]
[311623418,1705265563559,-3302.73,0.0003452,2]
[311623419,1705265563567,-755.87,0.0003452,2]
[311623420,1705265563576,-1145.63,0.0003452,2]
[311623421,1705265563586,-288.85366349,0.0003452,2]
[311623422,1705265563595,-881.88,0.0003452,2]
[311623423,1705265563604,-3349.66,0.0003452,2]
[311623424,1705265563612,-699.61,0.0003452,2]
[311623425,1705265563621,-911.19,0.0003452,2]
[311623426,1705265563631,-500.0,0.0003452,2]
[311623427,1705265563641,-9373.54,0.0003452,2]
[311623428,1705265563650,-563.79,0.0003452,2]
[311623429,1705265563660,-1392.74,0.0003452,2]
[311623430,1705265563669,-500.0,0.0003452,2]
[311623431,1705265563679,-580.88,0.0003452,2]
[311623432,1705265563689,-1446.11,0.0003452,2]
[311623433,1705265563698,-9954.34,0.0003452,2]
[311623434,1705265563707,-1674.87,0.0003452,2]
[311623435,1705265563716,-2675.53,0.0003452,2]
[311623436,1705265563726,-638.69,0.0003452,2]
[311623437,1705265563735,-609.69,0.0003452,2]
[311623438,1705265563744,-5600.69,0.0003452,2]
[311623439,1705265563753,-541.21,0.0003452,2]
[311623440,1705265563762,-830.84,0.0003452,2]
[311623441,1705265563772,-2246.95,0.0003452,2]
[311623442,1705265563784,-1402.19,0.0003452,2]
[311623443,1705265563793,-924.51,0.0003452,2]
[311623444,1705265563802,-3335.08,0.0003452,2]
[311623445,1705265563811,-10595.33,0.0003452,2]
[311623446,1705265563822,-836.16,0.0003452,2]
[311623447,1705265563832,-500.0,0.0003452,2]
[311623448,1705265563841,-500.0,0.0003452,2]
[311623449,1705265563850,-646.01,0.0003452,2]
[311623450,1705265563859,-500.0,0.0003452,2]
[311623451,1705265563868,-500.0,0.0003452,2]
[311623452,1705265563876,-500.0,0.0003452,2]
[311623453,1705265563886,-479.44,0.0003452,2]
[311623454,1705265563895,-500.0,0.0003452,2]
[311623455,1705265563904,-1637.96,0.0003452,2]
[311623456,1705265563913,-500.0,0.0003452,2]
[311623457,1705265563922,-3225.32,0.0003452,2]
[311623458,1705265563933,-3401.5,0.0003452,2]
[311623459,1705265563943,-699.52,0.0003452,2]
[311623460,1705265563952,-1658.41,0.0003452,2]
[311623461,1705265563962,-500.0,0.0003452,2]
[311623462,1705265563971,-898.47,0.0003452,2]
[311623463,1705265563980,-747.38,0.0003452,2]
[311623464,1705265563990,-502.0,0.0003452,2]
[311623465,1705265563999,-3294.26,0.0003452,2]
[311623466,1705265564008,-781.12,0.0003452,2]
[311623467,1705265564017,-2934.21,0.0003452,2]
[311623468,1705265564026,-28330.08,0.0003452,2]
[311623469,1705265564036,-1324.02,0.0003452,2]
[311623470,1705265564045,-629.21725078,0.0003452,2]
[311623471,1705265564055,-915.45,0.0003452,2]
[311623472,1705265564065,-1385.96,0.0003452,2]
[311623473,1705265564074,-509.43,0.0003452,2]
[311623474,1705265564083,-2258.81,0.0003452,2]
[311623475,1705265564092,-993.95,0.0003452,2]
[311623476,1705265564102,-630.07,0.0003452,2]
[311623477,1705265564111,-663.38,0.0003452,2]
[311623478,1705265564120,-534.75,0.0003452,2]
[311623479,1705265564130,-7238.69,0.0003452,2]
[311623480,1705265564139,-2077.72,0.0003452,2]
[311623481,1705265564148,-1376.21,0.0003452,2]
[311623482,1705265564157,-500.0,0.0003452,2]
[311623483,1705265564167,-1332.9,0.0003452,2]
[311623484,1705265564176,-500.0,0.0003452,2]
[311623485,1705265564185,-1108.32,0.0003452,2]
[311623486,1705265564194,-560.24,0.0003452,2]
[311623487,1705265564203,-691.92,0.0003452,2]
[311623488,1705265564213,-500.0,0.0003452,2]
[311623489,1705265564222,-917.54,0.0003452,2]
[311623490,1705265564231,-644.63,0.0003452,2]
[311623491,1705265564240,-500.0,0.0003452,2]
[311623492,1705265564250,-4169.87,0.0003452,2]
[311623493,1705265564259,-503.48,0.0003452,2]
[311623494,1705265564268,-810.05,0.0003452,2]
[311623495,1705265564277,-799.56,0.0003452,2]
[311623496,1705265564287,-500.0,0.0003452,2]
[311623497,1705265564297,-767.29,0.0003452,2]
[311623498,1705265564306,-907.45,0.0003452,2]
[311623499,1705265564315,-733.07,0.0003452,2]
[311623500,1705265564324,-500.0,0.0003452,2]
[311623501,1705265564333,-6057.77,0.0003452,2]
[311623502,1705265564342,-1447.4,0.0003452,2]
[311623503,1705265564351,-1557.23,0.0003452,2]
[311623504,1705265564360,-1520.88,0.0003452,2]
[311623505,1705265564369,-454.16647726,0.0003452,2]
[311623506,1705265564378,-1561.7,0.0003452,2]
[311623507,1705265564388,-16510.87,0.0003452,2]
[311623508,1705265564397,-2650.58,0.0003452,2]
[311623509,1705265564406,-500.0,0.0003452,2]
[311623510,1705265564427,-587.88,0.0003452,2]
[311623511,1705265564438,-1302.74,0.0003452,2]
[311623512,1705265564447,-1648.36,0.0003452,2]
[311623513,1705265564457,-3126.96,0.0003452,2]
[311623514,1705265564466,-500.0,0.0003452,2]
[311623515,1705265564476,-1892.55,0.0003452,2]
[311623516,1705265564486,-500.0,0.0003452,2]
[311623517,1705265564495,-3105.59,0.0003452,2]
[311623518,1705265564505,-8950.09,0.0003452,2]
[311623519,1705265564515,-1582.78,0.0003452,2]
[311623520,1705265564524,-1119.58,0.0003452,2]
[311623521,1705265564534,-810.88,0.0003452,2]
[311623522,1705265564543,-925.46,0.0003452,2]
[311623523,1705265564553,-1362.22,0.0003452,2]
[311623524,1705265564562,-1419.16,0.0003452,2]
[311623525,1705265564572,-840.38,0.0003452,2]
[311623526,1705265564581,-500.0,0.0003452,2]
[311623527,1705265564590,-1153.75,0.0003452,2]
[311623528,1705265564599,-707.1,0.0003452,2]
[311623529,1705265564608,-965.13,0.0003452,2]
[311623530,1705265564617,-500.0,0.0003452,2]
[311623531,1705265564627,-500.0,0.0003452,2]
[311623532,1705265564636,-736.07,0.0003452,2]
[311623533,1705265564645,-1354.92,0.0003452,2]
[311623534,1705265564654,-622.53,0.0003452,2]
[311623535,1705265564663,-5875.67,0.0003452,2]
[311623536,1705265564672,-836.71,0.0003452,2]
[311623537,1705265564682,-784.6,0.0003452,2]
[311623538,1705265564691,-3535.86,0.0003452,2]
[311623539,1705265564700,-1339.45,0.0003452,2]
[311623540,1705265564709,-726.02,0.0003452,2]
[311623541,1705265564718,-2000.77,0.0003452,2]
[311623542,1705265564728,-772.02,0.0003452,2]
[311623543,1705265564738,-4196.76,0.0003452,2]
[311623544,1705265564747,-874.57,0.0003452,2]
[311623545,1705265564757,-1070.23,0.0003452,2]
[311623546,1705265564766,-563.09,0.0003452,2]
[311623547,1705265564776,-500.0,0.0003452,2]
[311623548,1705265564790,-803.67,0.0003452,2]
[311623549,1705265564799,-869.2,0.0003452,2]
[311623550,1705265564808,-599.71222607,0.0003452,2]
[311623551,1705265564818,-500.0,0.0003452,2]
[311623552,1705265564828,-581.19,0.0003452,2]
[311623553,1705265564837,-2946.84,0.0003452,2]
[311623554,1705265564847,-711.01,0.0003452,2]
[311623555,1705265564856,-969.9,0.0003452,2]
[311623556,1705265564865,-1464.74,0.0003452,2]
[311623557,1705265564876,-552.27,0.0003452,2]
[311623558,1705265564885,-633.03,0.0003452,2]
[311623559,1705265564895,-1928.32,0.0003452,2]
[311623560,1705265564904,-1643.12,0.0003452,2]
[311623561,1705265564913,-1109.23,0.0003452,2]
[311623562,1705265564923,-1980.27,0.0003452,2]
[311623563,1705265564934,-503.28,0.0003452,2]
[311623564,1705265564943,-1413.08,0.0003452,2]
[311623565,1705265564952,-500.0,0.0003452,2]
[311623566,1705265564962,-532.18,0.0003452,2]
[311623567,1705265564972,-710.77,0.0003452,2]
[311623568,1705265564981,-560.65,0.0003452,2]
[311623569,1705265564990,-1886.92,0.0003452,2]
[311623570,1705265564999,-500.0,0.0003452,2]
[311623571,1705265565009,-848.62,0.0003452,2]
[311623572,1705265565018,-610.95,0.0003452,2]
[311623573,1705265565027,-4590.19,0.0003452,2]
[311623574,1705265565036,-567.58,0.0003452,2]
[311623575,1705265565046,-500.0,0.0003452,2]
[311623576,1705265565056,-10000.0,0.00034521,2]
[311623577,1705265565065,-500.0,0.00034544,2]
[311623578,1705265565075,-202.0,0.0003455,2]
[311623579,1705265565084,-489.22219992,0.000346,4]
[311623580,1705265565093,-210.0,0.000346,2]
[311623581,1705265565104,-294.0,0.000346,2]
[311623582,1705265565113,-1294.24707646,0.000346,2]
[311623583,1705265565484,-1705.75292354,0.000346,2]
[311623584,1705265565494,-300.0,0.000346,8]
[311623585,1705265565503,-150.0,0.000346,8]
[311623586,1705265565513,-276.992108,0.000346,2]
[311623587,1705265565523,-150.0,0.00034607,2]
[311623588,1705265565532,-180.0,0.00034658,2]
[311623589,1705265565541,-151.0,0.000347,2]
[311623590,1705265565551,-153.84,0.00034703,2]
[311623591,1705265565560,-782.2,0.00034703,2]
[311623592,1705265565570,-500.0,0.00034725,2]
[311623593,1705265565580,-151.0,0.00034789,4]
[311623594,1705265565589,-516.898056,0.00034794,2]
[311623595,1705265565598,-4197.250436,0.00034794,2]
[311623596,1705265565607,-1587.970044,0.00034794,2]
[311623597,1705265565616,-14690.376524,0.00034794,2]
[311623598,1705265565626,-3101.388334,0.00034794,2]
[311623599,1705265565634,-25183.502614,0.00034794,2]
[311623600,1705265565644,-2067.592223,0.00034794,2]
[311623601,1705265565653,-16789.001742,0.00034794,2]
[311623602,1705265565662,-500.739421,0.00034794,2]
[311623603,1705265565671,-3145.336367,0.00034794,2]
[311623604,1705265565682,-2516.269094,0.00034794,2]
[311623605,1705265565691,-5912.90081,0.00034794,2]
[311623606,1705265565700,-1201.77461,0.00034794,2]
[311623607,1705265565709,-1635.906471,0.00034794,2]
[311623608,1705265565718,-574.024783,0.00034794,2]
[311623609,1705265565728,-459.219826,0.00034794,2]
[311623610,1705265565737,-574.024783,0.00034794,2]
[311623611,1705265565747,-500.0,0.00034794,2]
[311623612,1705265565756,-500.0,0.00034794,2]
[311623613,1705265565765,-500.0,0.00034794,2]
[311623614,1705265565775,-528.74,0.00034794,2]
[311623615,1705265565789,-502.48,0.00034794,2]
[311623616,1705265565797,-500.0,0.00034794,2]
[311623617,1705265565807,-770.53,0.00034794,2]
[311623618,1705265565816,-500.0,0.00034794,2]
[311623619,1705265565827,-926.02,0.00034794,2]
[311623620,1705265565836,-1147.85,0.00034794,2]
[311623621,1705265565845,-500.0,0.00034794,2]
[311623622,1705265565855,-500.0,0.00034794,2]
[311623623,1705265565865,-541.41,0.00034794,2]
[311623624,1705265565874,-500.0,0.00034794,2]
[311623625,1705265565883,-500.0,0.00034794,2]
[311623626,1705265565892,-500.0,0.00034794,2]
[311623627,1705265565901,-709.9,0.00034794,2]
[311623628,1705265565910,-500.0,0.00034794,2]
[311623629,1705265565919,-362.37621961,0.00034794,2]
[311623630,1705265565928,-656.39,0.00034794,2]
[311623631,1705265565937,-500.0,0.00034794,2]
[311623632,1705265565946,-500.0,0.00034794,2]
[311623633,1705265565955,-500.0,0.00034794,2]
[311623634,1705265565965,-585.77,0.00034794,2]
[311623635,1705265565973,-646.67,0.00034794,2]
[311623636,1705265565982,-500.0,0.00034794,2]
[311623637,1705265565991,-500.0,0.00034794,2]
[311623638,1705265566000,-518.76,0.00034794,2]
[311623639,1705265566010,-500.0,0.00034794,2]
[311623640,1705265566018,-673.27,0.00034794,2]
[311623641,1705265566028,-653.68,0.00034794,2]
[311623642,1705265566037,-640.51,0.00034794,2]
[311623643,1705265566046,-595.86,0.00034794,2]
[311623644,1705265566056,-565.95,0.00034794,2]
[311623645,1705265566067,-645.55,0.00034794,2]
[311623646,1705265566076,-588.78,0.00034794,2]
[311623647,1705265566085,-683.34,0.00034794,2]
[311623648,1705265566093,-551.22,0.00034794,2]
[311623649,1705265566103,-500.0,0.00034794,2]
[311623650,1705265566112,-594.67,0.00034794,2]
[311623651,1705265566122,-500.0,0.00034794,2]
[311623652,1705265566131,-963.4,0.00034794,2]
[311623653,1705265566139,-601.15,0.00034794,2]
[311623654,1705265566148,-665.95,0.00034794,2]
[311623655,1705265566157,-500.0,0.00034794,2]
[311623656,1705265566167,-800.79,0.00034794,2]
[311623657,1705265566177,-562.08,0.00034794,2]
[311623658,1705265566186,-626.87,0.00034794,2]
[311623659,1705265566195,-727.57,0.00034794,2]
[311623660,1705265566204,-560.21,0.00034794,2]
[311623661,1705265566213,-500.0,0.00034794,2]
[311623662,1705265566223,-982.04,0.00034794,2]
[311623663,1705265566232,-600.07,0.00034794,2]
[311623664,1705265566241,-500.0,0.00034794,2]
[311623665,1705265566251,-1048.4,0.00034794,2]
[311623666,1705265566260,-500.0,0.00034794,2]
[311623667,1705265566269,-950.82,0.00034794,2]
[311623668,1705265566279,-775.5,0.00034794,2]
[311623669,1705265566289,-500.0,0.00034794,2]
[311623670,1705265566298,-806.58,0.00034794,2]
[311623671,1705265566307,-748.97,0.00034794,2]
[311623672,1705265566316,-500.0,0.00034794,2]
[311623673,1705265566326,-500.0,0.00034794,2]
[311623674,1705265566335,-544.49,0.00034794,2]
[311623675,1705265566344,-500.0,0.00034794,2]
[311623676,1705265566354,-500.0,0.00034794,2]
[311623677,1705265566363,-671.61,0.00034794,2]
[311623678,1705265566373,-500.0,0.00034794,2]
[311623679,1705265566382,-602.2,0.00034794,2]
[311623680,1705265566391,-769.86,0.00034794,2]
[311623681,1705265566401,-500.0,0.00034794,2]
[311623682,1705265566412,-500.0,0.00034794,2]
[311623683,1705265566421,-500.0,0.00034794,2]
[311623684,1705265566431,-692.82,0.00034794,2]
[311623685,1705265566440,-507.31,0.00034794,2]
[311623686,1705265566450,-441.25366605,0.00034794,2]
[311623687,1705265566459,-500.0,0.00034794,2]
[311623688,1705265566468,-729.84,0.00034794,2]
[311623689,1705265566478,-536.68,0.00034794,2]
[311623690,1705265566488,-583.46,0.00034794,2]
[311623691,1705265566498,-500.0,0.00034794,2]
[311623692,1705265566507,-500.0,0.00034794,2]
[311623693,1705265566516,-1000.1,0.00034794,2]
[311623694,1705265566526,-404.21645469,0.00034794,2]
[311623695,1705265566535,-702.71,0.00034794,2]
[311623696,1705265566545,-500.0,0.00034794,2]
[311623697,1705265566554,-793.74,0.00034794,2]
[311623698,1705265566564,-923.77,0.00034794,2]
[311623699,1705265566573,-500.0,0.00034794,2]
[311623700,1705265566583,-629.36,0.00034794,2]
[311623701,1705265566592,-500.0,0.00034794,2]
[311623702,1705265566601,-500.0,0.00034794,2]
[311623703,1705265566609,-867.3,0.00034794,2]
[311623704,1705265566619,-500.0,0.00034794,2]
[311623705,1705265566628,-500.0,0.00034794,2]
[311623706,1705265566637,-581.81,0.00034794,2]
[311623707,1705265566646,-624.05,0.00034794,2]
[311623708,1705265566656,-830.39,0.00034794,2]
[311623709,1705265566665,-677.4,0.00034794,2]
[311623710,1705265566674,-1100.99,0.00034794,2]
[311623711,1705265566685,-500.0,0.00034794,2]
[311623712,1705265566697,-525.17,0.00034794,2]
[311623713,1705265566707,-586.11,0.00034794,2]
[311623714,1705265566716,-500.0,0.00034794,2]
[311623715,1705265566725,-500.0,0.00034794,2]
[311623716,1705265566734,-1229.11,0.00034794,2]
[311623717,1705265566743,-1106.76,0.00034794,2]
[311623718,1705265566752,-500.0,0.00034794,2]
[311623719,1705265566762,-500.0,0.00034794,2]
[311623720,1705265566771,-894.93,0.00034794,2]
[311623721,1705265566782,-608.9,0.00034794,2]
[311623722,1705265566792,-500.0,0.00034794,2]
[311623723,1705265566800,-946.64,0.00034794,2]
[311623724,1705265566810,-500.0,0.00034794,2]
[311623725,1705265566820,-619.49,0.00034794,2]
[311623726,1705265566830,-868.77,0.00034794,2]
[311623727,1705265566839,-500.0,0.00034794,2]
[311623728,1705265566848,-500.0,0.00034794,2]
[311623729,1705265566857,-500.0,0.00034794,2]
[311623730,1705265566865,-578.25,0.00034794,2]
[311623731,1705265566874,-532.95,0.00034794,2]
[311623732,1705265566884,-1204.84,0.00034794,2]
[311623733,1705265566895,-545.29,0.00034794,2]
[311623734,1705265566905,-500.0,0.00034794,2]
[311623735,1705265566914,-670.63,0.00034794,2]
[311623736,1705265566922,-523.04,0.00034794,2]
[311623737,1705265566932,-500.0,0.00034794,2]
[311623738,1705265566942,-500.0,0.00034794,2]
[311623739,1705265566951,-636.75,0.00034794,2]
[311623740,1705265566960,-596.02,0.00034794,2]
[311623741,1705265566969,-1015.13,0.00034794,2]
[311623742,1705265566978,-500.0,0.00034794,2]
[311623743,1705265566987,-1744.35,0.00034794,2]
[311623744,1705265566997,-851.16,0.00034794,2]
[311623745,1705265567006,-536.9,0.00034794,2]
[311623746,1705265567015,-846.45,0.00034794,2]
[311623747,1705265567024,-500.0,0.00034794,2]
[311623748,1705265567033,-607.07,0.00034794,2]
[311623749,1705265567043,-569.26838274,0.00034794,2]
[311623750,1705265567052,-1022.21,0.00034794,2]
[311623751,1705265567061,-797.3,0.00034794,2]
[311623752,1705265567070,-560.52,0.00034794,2]
[311623753,1705265567228,-546.08,0.00034794,2]
[311623754,1705265567238,-1547.25,0.00034794,2]
[311623755,1705265567247,-715.62,0.00034794,2]
[311623756,1705265567256,-500.0,0.00034794,2]
[311623757,1705265567266,-900.1,0.00034794,2]
[311623758,1705265567275,-500.0,0.00034794,2]
[311623759,1705265567284,-500.0,0.00034794,2]
[311623760,1705265567293,-1245.22,0.00034794,2]
[311623761,1705265567302,-2718.67,0.00034794,2]
[311623762,1705265567311,-679.75,0.00034794,2]
[311623763,1705265567320,-1251.06,0.00034794,2]
[311623764,1705265567330,-650.18,0.00034794,2]
[311623765,1705265567339,-500.0,0.00034794,2]
[311623766,1705265567349,-983.25,0.00034794,2]
[311623767,1705265567358,-2249.92,0.00034794,2]
[311623768,1705265567367,-500.0,0.00034794,2]
[311623769,1705265567376,-595.82,0.00034794,2]
[311623770,1705265567386,-500.0,0.00034794,2]
[311623771,1705265567395,-1879.49,0.00034794,2]
[311623772,1705265567404,-979.35,0.00034794,2]
[311623773,1705265567414,-645.75,0.00034794,2]
[311623774,1705265567423,-629.35,0.00034794,2]
[311623775,1705265567434,-689.93,0.00034794,2]
[311623776,1705265567443,-905.95,0.00034794,2]
[311623777,1705265567453,-669.74,0.00034794,2]
[311623778,1705265567462,-658.52,0.00034794,2]
[311623779,1705265567472,-500.0,0.00034794,2]
[311623780,1705265567482,-1000.92,0.00034794,2]
[311623781,1705265567491,-584.45,0.00034794,2]
[311623782,1705265567500,-500.0,0.00034794,2]
[311623783,1705265567509,-500.0,0.00034794,2]
[311623784,1705265567519,-596.4,0.00034794,2]
[311623785,1705265567529,-675.0,0.00034794,2]
[311623786,1705265567538,-500.0,0.00034794,2]
[311623787,1705265567548,-500.0,0.00034794,2]
[311623788,1705265567558,-679.48,0.00034794,2]
[311623789,1705265567567,-886.22,0.00034794,2]
[311623790,1705265567577,-698.99,0.00034794,2]
[311623791,1705265567586,-567.27,0.00034794,2]
[311623792,1705265567596,-1207.58,0.00034794,2]
[311623793,1705265567605,-692.03,0.00034794,2]
[311623794,1705265567614,-4337.15,0.00034794,2]
[311623795,1705265567623,-1455.02,0.00034794,2]
[311623796,1705265567633,-718.79,0.00034794,2]
[311623797,1705265567642,-852.88,0.00034794,2]
[311623798,1705265567651,-500.0,0.00034794,2]
[311623799,1705265567660,-500.0,0.00034794,2]
[311623800,1705265567669,-902.9,0.00034794,2]
[311623801,1705265567679,-500.0,0.00034794,5]
[311623802,1705265567689,-500.0,0.00034794,2]
[311623803,1705265567698,-746.49,0.00034794,2]
[311623804,1705265567708,-541.15,0.00034794,2]
[311623805,1705265567717,-500.0,0.00034794,2]
[311623806,1705265567726,-7127.94,0.00034794,2]
[311623807,1705265567735,-727.08,0.00034794,2]
[311623808,1705265567745,-918.26,0.00034794,2]
[311623809,1705265567754,-639.55363884,0.00034794,2]
[311623810,1705265567774,-738.16610554,0.00034794,2]
[311623811,1705265567788,-489.51290287,0.00034794,2]
[311623812,1705265567832,-426.72,0.0003041,2]
[311623813,1705265567843,-73.28,0.0003041,2]
[311623814,1705265567853,-500.0,0.00033999,4]
[311623815,1705265567864,-467.73735275,0.00034794,2]
[311623816,1705265567873,-571.94,0.00034794,2]
[311623817,1705265567882,-520.99,0.00034794,2]
[311623818,1705265567892,-1278.08,0.00034794,2]
[311623819,1705265567902,-500.0,0.00034794,2]
[311623820,1705265567911,-1335.19,0.00034794,2]
[311623821,1705265567921,-507.96,0.00034794,2]
[311623822,1705265567931,-113.9205784,0.00034794,2]
[311623823,1705265567955,-270.62471335,0.00033999,4]
[311623824,1705265567983,-254.7112902,0.00033424,2]
[311623825,1705265568745,-6707.14114964,0.00022111,2]
[311623826,1705265568754,-500.0,0.00030136,2]
[311623827,1705265568763,-500.0,0.00030136,2]
[311623828,1705265568773,-275.66,0.0003041,2]
[311623829,1705265568782,-500.0,0.0003041,2]
[311623830,1705265568791,-500.0,0.00030684,2]
[311623831,1705265568800,-500.0,0.00030684,2]
[311623832,1705265568809,-500.0,0.00030958,2]
[311623833,1705265568819,-500.0,0.00031232,2]
[311623834,1705265568829,-500.0,0.00031506,2]
[311623835,1705265568837,-500.0,0.0003178,2]
[311623836,1705265568848,-500.0,0.00032054,2]
[311623837,1705265568857,-500.0,0.00032054,2]